[Event "Kvibergspelen September 2019"]
[Site "Prioritet Serneke Arena, Krutvagen 2, Gothenburg, Sweden"]
[Date "2019.09.27"]
[Round "1.7"]
[White "Seo, Jung Min"]
[Black "Svensson, Soren"]
[Result "1-0"]
[TimeControl "15 minutes + 5 seconds per move from move one (Round 1 - 4) / 90 minutes + 30 seconds per move from move one (Round 5 - 8)"]
[WhiteTitle "FM"]
[WhiteFideId "1734687"]
[BlackFideId "1714937"]
[WhiteElo "2437"]
[BlackElo "1942"]

1. c4 {[%clk 00:15:09]} {[%emt 03:31:30]} e5 {[%clk 00:15:04]} {[%emt
00:00:07]} 2. Nc3 {[%clk 00:15:13]} {[%emt 00:00:01]} Nf6 {[%clk 00:15:05]}
{[%emt 00:00:04]} 3. Nf3 {[%clk 00:15:16]} {[%emt 00:00:01]} Nc6 {[%clk
00:15:07]} {[%emt 00:00:03]} 4. e3 {[%clk 00:15:20]} {[%emt 00:00:01]} d5
{[%clk 00:14:49]} {[%emt 00:00:23]} 5. cxd5 {[%clk 00:15:22]} {[%emt 00:00:02]}
Nxd5 {[%clk 00:14:52]} {[%emt 00:00:02]} 6. d3 {[%clk 00:14:37]} {[%emt
00:00:50]} Be6 {[%clk 00:14:29]} {[%emt 00:00:28]} 7. Be2 {[%clk 00:14:36]}
{[%emt 00:00:05]} Be7 {[%clk 00:14:18]} {[%emt 00:00:16]} 8. O-O {[%clk
00:14:35]} {[%emt 00:00:06]} O-O {[%clk 00:14:19]} {[%emt 00:00:04]} 9. a3
{[%clk 00:14:38]} {[%emt 00:00:02]} a6 {[%clk 00:14:05]} {[%emt 00:00:19]} 10.
Bd2 {[%clk 00:14:26]} {[%emt 00:00:16]} Qd7 {[%clk 00:12:57]} {[%emt 00:01:14]}
11. Rc1 {[%clk 00:14:21]} {[%emt 00:00:10]} f5 {[%clk 00:12:48]} {[%emt
00:00:14]} 12. Qc2 {[%clk 00:14:09]} {[%emt 00:00:17]} Rae8 {[%clk 00:11:40]}
{[%emt 00:01:14]} 13. Rfd1 {[%clk 00:13:59]} {[%emt 00:00:14]} Nb6 {[%clk
00:10:48]} {[%emt 00:00:57]} 14. b4 {[%clk 00:13:20]} {[%emt 00:00:44]} Bd6
{[%clk 00:09:54]} {[%emt 00:01:00]} 15. Ng5 {[%clk 00:13:12]} {[%emt 00:00:12]}
h6 {[%clk 00:09:23]} {[%emt 00:00:37]} 16. Nxe6 {[%clk 00:13:15]} {[%emt
00:00:01]} Qxe6 {[%clk 00:09:25]} {[%emt 00:00:03]} 17. Bf3 {[%clk 00:13:15]}
{[%emt 00:00:05]} Kh8 {[%clk 00:08:53]} {[%emt 00:00:38]} 18. Bxc6 {[%clk
00:13:05]} {[%emt 00:00:15]} bxc6 {[%clk 00:08:54]} {[%emt 00:00:04]} 19. Ne2
{[%clk 00:13:02]} {[%emt 00:00:08]} f4 {[%clk 00:07:53]} {[%emt 00:01:07]} 20.
exf4 {[%clk 00:12:31]} {[%emt 00:00:36]} exf4 {[%clk 00:07:53]} {[%emt
00:00:05]} 21. Nd4 {[%clk 00:12:34]} {[%emt 00:00:01]} Qf6 {[%clk 00:07:20]}
{[%emt 00:00:37]} 22. Nf3 {[%clk 00:12:34]} {[%emt 00:00:05]} Re2 {[%clk
00:04:47]} {[%emt 00:02:39]} 23. Qxc6 {[%clk 00:12:24]} {[%emt 00:00:16]} Qb2
{[%clk 00:04:10]} {[%emt 00:00:41]} 24. Qc2 {[%clk 00:10:45]} {[%emt 00:01:44]}
Qf6 {[%clk 00:04:02]} {[%emt 00:00:13]} 25. Qc6 {[%clk 00:10:22]} {[%emt
00:00:28]} Qb2 {[%clk 00:03:49]} {[%emt 00:00:18]} 26. Qc3 {[%clk 00:10:25]}
{[%emt 00:00:02]} Qxc3 {[%clk 00:03:46]} {[%emt 00:00:08]} 27. Rxc3 {[%clk
00:10:13]} {[%emt 00:00:17]} Rfe8 {[%clk 00:03:19]} {[%emt 00:00:32]} 28. h3
{[%clk 00:10:04]} {[%emt 00:00:13]} Na4 {[%clk 00:02:57]} {[%emt 00:00:28]} 29.
Rb3 {[%clk 00:10:02]} {[%emt 00:00:07]} c5 {[%clk 00:02:45]} {[%emt 00:00:17]}
30. Kf1 {[%clk 00:10:01]} {[%emt 00:00:06]} Nb6 {[%clk 00:02:29]} {[%emt
00:00:22]} 31. bxc5 {[%clk 00:09:51]} {[%emt 00:00:14]} Bxc5 {[%clk 00:02:17]}
{[%emt 00:00:17]} 32. d4 {[%clk 00:09:56]} 1-0

[Event "Kvibergspelen September 2019"]
[Site "Prioritet Serneke Arena, Krutvagen 2, Gothenburg, Sweden"]
[Date "2019.09.27"]
[Round "1.8"]
[White "Ehrenreich, Simon"]
[Black "Le, Quang Long"]
[Result "0-1"]
[TimeControl "15 minutes + 5 seconds per move from move one (Round 1 - 4) / 90 minutes + 30 seconds per move from move one (Round 5 - 8)"]
[BlackTitle "IM"]
[WhiteFideId "1457292"]
[BlackFideId "12401749"]
[WhiteElo "1937"]
[BlackElo "2415"]

1. d4 {[%clk 00:15:06]} {[%emt 00:00:04]} Nf6 {[%clk 00:14:52]} {[%emt
00:00:18]} 2. c4 {[%clk 00:15:08]} {[%emt 00:00:03]} c5 {[%clk 00:14:49]}
{[%emt 00:00:08]} 3. d5 {[%clk 00:14:57]} {[%emt 00:00:16]} b5 {[%clk
00:14:28]} {[%emt 00:00:26]} 4. cxb5 {[%clk 00:14:11]} {[%emt 00:00:50]} a6
{[%clk 00:14:32]} {[%emt 00:00:02]} 5. bxa6 {[%clk 00:14:09]} {[%emt 00:00:08]}
g6 {[%clk 00:14:31]} {[%emt 00:00:05]} 6. Nc3 {[%clk 00:13:47]} {[%emt
00:00:26]} Bxa6 {[%clk 00:14:34]} {[%emt 00:00:03]} 7. e4 {[%clk 00:12:37]}
{[%emt 00:01:14]} Bxf1 {[%clk 00:14:37]} {[%emt 00:00:02]} 8. Kxf1 {[%clk
00:12:40]} {[%emt 00:00:02]} d6 {[%clk 00:14:41]} {[%emt 00:00:01]} 9. g3
{[%clk 00:11:54]} {[%emt 00:00:52]} Bg7 {[%clk 00:14:43]} {[%emt 00:00:02]} 10.
Kg2 {[%clk 00:11:37]} {[%emt 00:00:21]} O-O {[%clk 00:14:46]} {[%emt 00:00:02]}
11. Rb1 {[%clk 00:10:31]} {[%emt 00:01:11]} Nbd7 {[%clk 00:13:57]} {[%emt
00:00:54]} 12. b3 {[%clk 00:09:34]} {[%emt 00:01:02]} Qa5 {[%clk 00:13:53]}
{[%emt 00:00:09]} 13. Bd2 {[%clk 00:08:48]} {[%emt 00:00:52]} Ne5 {[%clk
00:12:47]} {[%emt 00:01:11]} 14. a4 {[%clk 00:05:58]} {[%emt 00:02:54]} Rfb8
{[%clk 00:11:28]} {[%emt 00:01:24]} 15. Nb5 {[%clk 00:05:53]} {[%emt 00:00:11]}
Qd8 {[%clk 00:11:08]} {[%emt 00:00:25]} 16. Qc2 {[%clk 00:05:08]} {[%emt
00:00:50]} Ne8 {[%clk 00:10:26]} {[%emt 00:00:46]} 17. Ne2 {[%clk 00:04:11]}
{[%emt 00:01:02]} Nc7 {[%clk 00:09:25]} {[%emt 00:01:07]} 18. Nec3 {[%clk
00:03:29]} {[%emt 00:00:47]} Na6 {[%clk 00:09:27]} {[%emt 00:00:02]} 19. Na2
{[%clk 00:03:19]} {[%emt 00:00:15]} Rc8 {[%clk 00:08:41]} {[%emt 00:00:52]} 20.
f4 {[%clk 00:02:54]} {[%emt 00:00:30]} Ng4 {[%clk 00:07:22]} {[%emt 00:01:24]}
21. h3 {[%clk 00:02:58]} {[%emt 00:00:02]} Nf6 {[%clk 00:07:26]} 22. Rhc1
{[%clk 00:02:38]} {[%emt 00:00:25]} Qd7 {[%clk 00:06:44]} {[%emt 00:00:47]} 23.
Bc3 {[%clk 00:02:28]} {[%emt 00:00:15]} e6 {[%clk 00:06:29]} {[%emt 00:00:20]}
24. Qd3 {[%clk 00:02:18]} {[%emt 00:00:14]} exd5 {[%clk 00:06:11]} {[%emt
00:00:24]} 25. exd5 {[%clk 00:02:22]} {[%emt 00:00:01]} c4 {[%clk 00:05:54]}
{[%emt 00:00:22]} 26. bxc4 {[%clk 00:02:17]} {[%emt 00:00:10]} Nc5 {[%clk
00:05:57]} {[%emt 00:00:01]} 27. Qf1 {[%clk 00:01:41]} {[%emt 00:00:40]} Rxa4
{[%clk 00:05:40]} {[%emt 00:00:23]} 28. Nb4 {[%clk 00:01:45]} {[%emt 00:00:01]}
Nce4 {[%clk 00:05:26]} {[%emt 00:00:19]} 29. Be1 {[%clk 00:00:58]} {[%emt
00:00:52]} Rca8 {[%clk 00:04:54]} {[%emt 00:00:37]} 30. Nc6 {[%clk 00:00:45]}
{[%emt 00:00:18]} Ra2+ {[%clk 00:04:52]} {[%emt 00:00:07]} 31. Kg1 {[%clk
00:00:41]} {[%emt 00:00:10]} Nh5 {[%clk 00:04:06]} {[%emt 00:00:50]} 32. Rb3
{[%clk 00:00:23]} {[%emt 00:00:25]} Ra1 {[%clk 00:03:40]} {[%emt 00:00:31]} 33.
Rxa1 {[%clk 00:00:21]} {[%emt 00:00:07]} Rxa1 {[%clk 00:03:41]} {[%emt
00:00:03]} 34. Ra3 {[%clk 00:00:19]} {[%emt 00:00:07]} Nhxg3 {[%clk 00:03:23]}
{[%emt 00:00:22]} 35. Rxa1 {[%clk 00:00:11]} {[%emt 00:00:13]} Nxf1 {[%clk
00:03:27]} {[%emt 00:00:01]} 36. Kxf1 {[%clk 00:00:15]} {[%emt 00:00:01]} Qxh3+
{[%clk 00:03:28]} {[%emt 00:00:03]} 37. Ke2 {[%clk 00:00:18]} {[%emt 00:00:01]}
Bxa1 {[%clk 00:03:32]} {[%emt 00:00:02]} 0-1

[Event "Kvibergspelen September 2019"]
[Site "Prioritet Serneke Arena, Krutvagen 2, Gothenburg, Sweden"]
[Date "2019.09.27"]
[Round "1.9"]
[White "Lindberg, Bengt"]
[Black "Mitra, Akash"]
[Result "1-0"]
[TimeControl "15 minutes + 5 seconds per move from move one (Round 1 - 4) / 90 minutes + 30 seconds per move from move one (Round 5 - 8)"]
[WhiteTitle "IM"]
[WhiteFideId "1700359"]
[BlackFideId "1726714"]
[WhiteElo "2397"]
[BlackElo "1928"]

1. e4 {[%clk 00:15:08]} c6 {[%clk 00:15:04]} {[%emt 00:00:07]} 2. d4 {[%clk
00:15:10]} {[%emt 00:00:02]} d5 {[%clk 00:15:08]} 3. exd5 {[%clk 00:14:48]}
{[%emt 00:00:28]} cxd5 {[%clk 00:15:08]} {[%emt 00:00:06]} 4. c4 {[%clk
00:14:51]} {[%emt 00:00:02]} Nf6 {[%clk 00:15:03]} {[%emt 00:00:10]} 5. Nc3
{[%clk 00:14:52]} {[%emt 00:00:03]} Nc6 {[%clk 00:14:44]} {[%emt 00:00:24]} 6.
Bg5 {[%clk 00:14:54]} {[%emt 00:00:03]} e6 {[%clk 00:14:27]} {[%emt 00:00:23]}
7. Nf3 {[%clk 00:14:51]} {[%emt 00:00:06]} Be7 {[%clk 00:14:28]} {[%emt
00:00:05]} 8. c5 {[%clk 00:14:51]} {[%emt 00:00:05]} h6 {[%clk 00:14:18]}
{[%emt 00:00:15]} 9. Bf4 {[%clk 00:14:32]} {[%emt 00:00:23]} a6 {[%clk
00:13:21]} {[%emt 00:01:03]} 10. Bd3 {[%clk 00:14:19]} {[%emt 00:00:16]} O-O
{[%clk 00:13:07]} {[%emt 00:00:20]} 11. O-O {[%clk 00:14:19]} {[%emt 00:00:04]}
b6 {[%clk 00:13:04]} {[%emt 00:00:10]} 12. cxb6 {[%clk 00:12:40]} {[%emt
00:01:44]} Qxb6 {[%clk 00:13:03]} {[%emt 00:00:07]} 13. Na4 {[%clk 00:12:39]}
{[%emt 00:00:04]} Qa7 {[%clk 00:12:21]} {[%emt 00:00:48]} 14. a3 {[%clk
00:12:10]} {[%emt 00:00:34]} Bd7 {[%clk 00:12:04]} {[%emt 00:00:22]} 15. b4
{[%clk 00:12:01]} {[%emt 00:00:14]} Ne4 {[%clk 00:11:18]} {[%emt 00:00:52]} 16.
Nc5 {[%clk 00:11:50]} {[%emt 00:00:16]} Bf6 {[%clk 00:10:45]} {[%emt 00:00:38]}
17. Nxe4 {[%clk 00:11:28]} {[%emt 00:00:27]} dxe4 {[%clk 00:10:45]} {[%emt
00:00:05]} 18. Bxe4 {[%clk 00:11:31]} {[%emt 00:00:02]} Nxd4 {[%clk 00:09:46]}
{[%emt 00:01:05]} 19. Bxa8 {[%clk 00:11:26]} {[%emt 00:00:09]} Rxa8 {[%clk
00:08:16]} {[%emt 00:01:36]} 20. Be3 {[%clk 00:10:34]} {[%emt 00:00:57]} e5
{[%clk 00:07:16]} {[%emt 00:01:05]} 21. Re1 {[%clk 00:10:25]} {[%emt 00:00:12]}
Bc6 {[%clk 00:06:54]} {[%emt 00:00:28]} 22. Bxd4 {[%clk 00:09:35]} {[%emt
00:00:55]} exd4 {[%clk 00:06:58]} {[%emt 00:00:02]} 23. Ne5 {[%clk 00:09:36]}
{[%emt 00:00:03]} Bd5 {[%clk 00:05:08]} {[%emt 00:01:56]} 24. Qg4 {[%clk
00:08:37]} {[%emt 00:01:03]} Rd8 {[%clk 00:03:58]} {[%emt 00:01:15]} 25. Rad1
{[%clk 00:08:01]} {[%emt 00:00:41]} Be6 {[%clk 00:04:02]} {[%emt 00:00:02]} 26.
Qg3 {[%clk 00:07:30]} {[%emt 00:00:35]} Rd5 {[%clk 00:03:49]} {[%emt 00:00:19]}
27. Ng4 {[%clk 00:06:44]} {[%emt 00:00:51]} Bxg4 {[%clk 00:02:00]} {[%emt
00:01:55]} 28. Qxg4 {[%clk 00:06:44]} {[%emt 00:00:03]} Qd7 {[%clk 00:01:50]}
{[%emt 00:00:17]} 29. Qxd7 {[%clk 00:06:27]} {[%emt 00:00:22]} Rxd7 {[%clk
00:01:54]} {[%emt 00:00:01]} 30. Re8+ {[%clk 00:05:33]} {[%emt 00:00:58]} Kh7
{[%clk 00:01:58]} 31. Rd3 {[%clk 00:05:36]} {[%emt 00:00:03]} Rc7 {[%clk
00:01:59]} {[%emt 00:00:04]} 32. g3 {[%clk 00:05:36]} {[%emt 00:00:05]} Rb7
{[%clk 00:01:01]} {[%emt 00:01:04]} 33. Rc8 {[%clk 00:05:02]} {[%emt 00:00:38]}
Rb6 {[%clk 00:01:04]} {[%emt 00:00:03]} 34. Kg2 {[%clk 00:04:57]} {[%emt
00:00:10]} g5 {[%clk 00:01:03]} {[%emt 00:00:06]} 35. Rc5 {[%clk 00:04:40]}
{[%emt 00:00:21]} Kg6 {[%clk 00:00:40]} {[%emt 00:00:29]} 36. g4 {[%clk
00:04:09]} {[%emt 00:00:36]} h5 {[%clk 00:00:25]} {[%emt 00:00:20]} 37. gxh5+
{[%clk 00:03:31]} {[%emt 00:00:43]} Kxh5 {[%clk 00:00:28]} {[%emt 00:00:01]} 38.
f4 {[%clk 00:03:33]} {[%emt 00:00:03]} Kg6 {[%emt 00:00:15]} 39. fxg5 {[%clk
00:03:31]} {[%emt 00:00:06]} Bxg5 {[%clk 00:00:23]} {[%emt 00:00:02]} 40. Rg3
{[%clk 00:03:34]} {[%emt 00:00:01]} 1-0

[Event "Kvibergspelen September 2019"]
[Site "Prioritet Serneke Arena, Krutvagen 2, Gothenburg, Sweden"]
[Date "2019.09.27"]
[Round "1.10"]
[White "Lindholm, Gustav"]
[Black "Pantzar, Milton"]
[Result "0-1"]
[TimeControl "15 minutes + 5 seconds per move from move one (Round 1 - 4) / 90 minutes + 30 seconds per move from move one (Round 5 - 8)"]
[BlackTitle "FM"]
[WhiteFideId "1736515"]
[BlackFideId "1721003"]
[WhiteElo "1923"]
[BlackElo "2376"]

1. d4 {[%clk 00:15:07]} {[%emt 00:00:02]} d5 {[%clk 00:15:07]} {[%emt
00:00:04]} 2. c4 {[%clk 00:15:10]} {[%emt 00:00:03]} e6 {[%clk 00:15:09]}
{[%emt 00:00:03]} 3. Nc3 {[%clk 00:15:12]} {[%emt 00:00:03]} c6 {[%clk
00:15:11]} {[%emt 00:00:03]} 4. Nf3 {[%clk 00:15:12]} {[%emt 00:00:05]} dxc4
{[%clk 00:15:07]} {[%emt 00:00:09]} 5. a4 {[%clk 00:15:09]} {[%emt 00:00:08]}
Bb4 {[%clk 00:15:09]} {[%emt 00:00:03]} 6. e3 {[%clk 00:15:00]} {[%emt
00:00:14]} b5 {[%clk 00:15:11]} {[%emt 00:00:03]} 7. Bd2 {[%clk 00:14:58]}
{[%emt 00:00:06]} a5 {[%clk 00:15:14]} {[%emt 00:00:03]} 8. axb5 {[%clk
00:14:28]} {[%emt 00:00:35]} Bxc3 {[%clk 00:15:17]} {[%emt 00:00:03]} 9. Bxc3
{[%clk 00:14:23]} {[%emt 00:00:09]} cxb5 {[%clk 00:15:19]} {[%emt 00:00:03]} 10.
b3 {[%clk 00:14:00]} {[%emt 00:00:28]} Bb7 {[%clk 00:15:21]} {[%emt 00:00:04]}
11. bxc4 {[%clk 00:13:46]} {[%emt 00:00:19]} b4 {[%clk 00:15:23]} {[%emt
00:00:02]} 12. Bb2 {[%clk 00:13:46]} {[%emt 00:00:05]} Nf6 {[%clk 00:15:25]}
{[%emt 00:00:03]} 13. Bd3 {[%clk 00:13:27]} {[%emt 00:00:24]} Nbd7 {[%clk
00:15:20]} {[%emt 00:00:11]} 14. O-O {[%clk 00:13:12]} {[%emt 00:00:20]} O-O
{[%clk 00:15:19]} {[%emt 00:00:06]} 15. Re1 {[%clk 00:12:51]} {[%emt 00:00:26]}
Ne4 {[%clk 00:15:19]} {[%emt 00:00:04]} 16. Bxe4 {[%clk 00:12:33]} {[%emt
00:00:24]} Bxe4 {[%clk 00:15:21]} {[%emt 00:00:03]} 17. Nd2 {[%clk 00:12:33]}
{[%emt 00:00:04]} Bb7 {[%clk 00:13:02]} {[%emt 00:02:24]} 18. e4 {[%clk
00:12:00]} {[%emt 00:00:39]} Qc7 {[%clk 00:10:31]} {[%emt 00:02:37]} 19. Re3
{[%clk 00:11:31]} {[%emt 00:00:33]} e5 {[%clk 00:09:36]} {[%emt 00:01:00]} 20.
Rg3 {[%clk 00:10:09]} {[%emt 00:01:27]} Ra6 {[%clk 00:08:42]} {[%emt 00:00:59]}
21. dxe5 {[%clk 00:08:59]} {[%emt 00:01:15]} Nxe5 {[%clk 00:06:50]} {[%emt
00:01:56]} 22. f4 {[%clk 00:07:34]} {[%emt 00:01:30]} Ng6 {[%clk 00:06:40]}
{[%emt 00:00:16]} 23. Qg4 {[%clk 00:06:33]} {[%emt 00:01:04]} a4 {[%clk
00:03:51]} {[%emt 00:02:54]} 24. f5 {[%clk 00:05:48]} {[%emt 00:00:50]} a3
{[%clk 00:03:55]} {[%emt 00:00:02]} 25. Bd4 {[%clk 00:05:20]} {[%emt 00:00:33]}
Rd8 {[%clk 00:02:07]} {[%emt 00:01:52]} 26. Nf3 {[%clk 00:04:21]} {[%emt
00:01:04]} Qxc4 {[%clk 00:01:35]} {[%emt 00:00:38]} 27. fxg6 {[%clk 00:04:08]}
{[%emt 00:00:18]} Rxg6 {[%clk 00:01:38]} {[%emt 00:00:02]} 28. Qf5 {[%clk
00:03:34]} {[%emt 00:00:39]} Rxd4 {[%clk 00:01:28]} {[%emt 00:00:14]} 29. Ne5
{[%clk 00:02:54]} {[%emt 00:00:45]} Qe6 {[%clk 00:00:51]} {[%emt 00:00:42]} 30.
Nxg6 {[%clk 00:02:09]} {[%emt 00:00:50]} hxg6 {[%clk 00:00:54]} {[%emt
00:00:02]} 31. Qb5 {[%clk 00:00:34]} {[%emt 00:01:40]} Rxe4 {[%clk 00:00:48]}
{[%emt 00:00:11]} 32. Rf3 {[%clk 00:00:07]} {[%emt 00:00:31]} Qc4 {[%clk
00:00:23]} {[%emt 00:00:30]} 33. Qxb7 {[%clk 00:00:07]} {[%emt 00:00:05]} Qd4+
{[%clk 00:00:25]} {[%emt 00:00:02]} 34. Rf2 {[%clk 00:00:12]} {[%emt 00:03:47]}
Qxa1+ {[%clk 00:02:23]} {[%emt 00:00:05]} 35. Rf1 {[%clk 00:00:15]} {[%emt
00:00:02]} Qd4+ {[%clk 00:01:28]} {[%emt 00:01:00]} 36. Kh1 {[%clk 00:00:17]}
{[%emt 00:00:03]} Qc4 {[%clk 00:01:32]} {[%emt 00:00:02]} 37. Qb8+ {[%clk
00:00:09]} {[%emt 00:00:13]} Kh7 {[%clk 00:01:35]} {[%emt 00:00:02]} 38. Qg3
{[%clk 00:00:09]} {[%emt 00:00:05]} Qxf1# {[%clk 00:01:38]} {[%emt 00:00:03]}
0-1